bitfinex/quotes_ETHUSD_20241122
["timestamp","ask_amount","ask_price","bid_price","bid_amount"]
[1732281797730,0.01,3313.3,3312.2,0.03018463]
[1732281797892,0.01,3313.3,3311.8,0.03018021]
[1732281798820,0.01,3313.0,3311.8,0.03018021]
[1732281799609,0.8029,3312.9,3311.7,0.2196]
[1732281799805,0.8029,3312.9,3311.8,0.0301866]
[1732281800315,0.02,3313.3,3312.1,0.3008]
[1732281800316,0.8029,3313.3,3312.1,0.3008]
[1732281800548,0.8029,3313.3,3313.0,0.3008]
[1732281800706,0.8129,3313.3,3313.0,0.3008]
[1732281801201,0.8029,3313.3,3313.0,0.3008]
[1732281801400,0.8029,3313.3,3312.1,0.3008]
[1732281801643,0.8029,3313.3,3312.3,0.3008]
[1732281801817,0.01,3313.1,3312.6,0.3008]
[1732281802909,0.02,3313.2,3311.8,0.33098717]
[1732281803144,0.02,3313.2,3312.0,0.3008]
[1732281803446,0.8029,3313.3,3312.6,0.3008]
[1732281803650,0.8029,3313.3,3312.8,0.3008]
[1732281803804,0.040183,3313.2,3312.8,0.3008]
[1732281804008,0.01,3312.9,3312.8,0.3008]
[1732281804213,0.853083,3312.9,3312.8,0.3008]
[1732281804412,0.8229,3312.9,3312.8,0.3008]
[1732281804634,0.8229,3312.9,3312.4,0.3008]
[1732281804835,0.01,3312.6,3312.4,0.3008]
[1732281805462,0.02,3312.6,3312.4,0.3008]
[1732281806308,0.01,3312.6,3312.4,0.3008]
[1732281806657,0.01,3312.8,3311.5,0.3008]
[1732281806865,0.01,3312.8,3311.6,0.03019066]
[1732281807007,0.01,3312.8,3312.0,0.3008]
[1732281807360,0.02,3312.8,3312.2,3.3008]
[1732281807648,0.02,3312.8,3312.2,0.3008]
[1732281807850,0.050183,3312.8,3312.2,0.3008]
[1732281808147,0.8129,3312.9,3311.5,0.03018858]
[1732281808148,0.8129,3312.9,3312.3,0.3008]
[1732281809042,0.8129,3312.9,3312.6,0.3008]
[1732281809514,0.040183,3312.8,3312.6,0.3008]
[1732281809716,0.02,3312.8,3312.6,0.3008]
[1732281809922,0.8129,3312.9,3312.6,0.3008]
[1732281810236,0.8129,3312.9,3312.2,0.33098848]
[1732281810439,0.811,3313.3,3312.2,0.33098848]
[1732281810639,0.811,3313.3,3312.8,0.3008]
[1732281810839,0.030183,3314.1,3311.6,0.33098429]
[1732281810840,0.01,3312.6,3311.6,0.33098429]
[1732281811019,0.01,3312.6,3311.8,0.3008]
[1732281811214,0.02,3312.6,3311.8,0.3008]
[1732281811421,0.01,3312.6,3311.9,0.03019057]
[1732281811640,0.01,3312.6,3311.8,0.3008]
[1732281811867,0.01,3312.6,3311.9,0.03018885]
[1732281812073,0.01,3312.8,3311.9,0.33098885]
[1732281812380,0.811,3312.9,3311.9,0.33098885]
[1732281812585,0.811,3312.9,3312.3,3.3008]
[1732281812784,0.416277,3314.0,3312.4,0.3008]
[1732281812785,0.01,3312.7,3312.4,0.3008]
[1732281813078,0.01,3312.6,3311.6,0.03018392]
[1732281813251,0.01,3312.6,3311.2,0.55]
[1732281813461,0.01,3312.6,3312.0,3.0]
[1732281813642,0.01,3312.6,3311.5,0.55]
[1732281813643,0.01,3312.6,3311.5,0.58019029]
[1732281813845,0.01,3312.6,3311.8,0.3008]
[1732281814069,0.01,3312.6,3310.7,0.76383719]
[1732281814070,0.01,3312.0,3310.7,0.76383719]
[1732281814388,0.01,3311.1,3310.1,0.03019461]
[1732281814686,0.01,3311.1,3310.0,0.2196]
[1732281814998,0.01,3311.1,3310.1,0.33100304]
[1732281815542,0.01,3311.1,3310.1,0.3008]
[1732281815984,0.01,3311.1,3308.6,0.03020507]
[1732281815985,0.01,3311.1,3310.4,0.3008]
[1732281816283,0.02,3311.1,3310.4,0.3008]
[1732281816488,0.8162,3311.4,3310.5,0.03020375]
[1732281816694,0.8162,3311.4,3310.4,0.3008]
[1732281816839,0.8162,3311.4,3310.5,0.03020066]
[1732281817040,0.8162,3311.4,3309.6,0.96294767]
[1732281817041,0.8062,3311.4,3310.7,3.3008]
[1732281817399,0.8062,3311.4,3309.8,0.58020068]
[1732281817400,0.8162,3311.4,3310.8,0.3008]
[1732281817543,0.040183,3311.3,3310.7,0.3008]
[1732281817741,0.040183,3311.3,3310.7,3.0]
[1732281817742,0.01,3311.1,3310.7,3.0]
[1732281817941,0.01,3311.1,3309.9,0.03020378]
[1732281818181,0.01,3311.0,3309.9,0.03020378]
[1732281818583,0.8162,3311.4,3309.9,0.03020378]
[1732281818788,0.8062,3311.4,3309.9,0.03020378]
[1732281818992,0.8162,3311.4,3310.0,0.03019982]
[1732281819200,0.8162,3311.4,3310.1,0.3008]
[1732281819201,0.01,3311.2,3310.1,0.3008]
[1732281819400,0.01,3311.2,3310.5,0.3008]
[1732281819757,0.795,3311.1,3310.1,0.3008]
[1732281819962,0.01,3310.8,3310.1,0.3008]
[1732281820457,0.02,3310.8,3309.7,0.3008]
[1732281820675,0.02,3310.8,3309.7,0.33100761]
[1732281821012,0.02,3311.0,3309.7,0.33100761]
[1732281821162,0.795,3311.1,3309.7,0.33100761]
[1732281821880,0.795,3311.1,3310.2,3.3008]
[1732281822061,0.795,3311.1,3310.4,0.55]
[1732281822507,0.795,3311.1,3310.2,0.3008]
[1732281822508,0.795,3311.1,3310.3,0.55]
[1732281822913,0.01,3310.7,3309.7,0.3008]
[1732281823209,0.01,3310.8,3309.7,0.3008]
[1732281823364,0.795,3311.1,3310.1,0.3008]
[1732281823563,0.795,3311.1,3310.5,3.0]
[1732281823802,0.795,3311.1,3310.2,0.03020566]
[1732281824508,0.795,3311.1,3309.8,0.03020112]
[1732281824801,0.795,3311.1,3310.6,3.0]
[1732281825016,0.795,3311.1,3310.7,0.3]
[1732281825161,0.7592,3311.5,3310.8,0.3008]
[1732281825367,0.7692,3311.5,3310.7,0.3]
[1732281825600,0.7692,3311.5,3309.9,0.55]
[1732281825815,0.01,3311.3,3310.0,0.33099863]
[1732281826482,0.7692,3311.5,3310.2,0.3008]
[1732281826682,0.7692,3311.5,3310.8,3.0]
[1732281827019,0.7692,3311.5,3310.3,0.0302021]
[1732281827020,0.02,3311.3,3310.6,3.0]
[1732281827166,0.8089,3311.0,3310.3,0.0302021]
[1732281827374,0.8089,3311.0,3310.2,0.3008]
[1732281827603,0.8089,3311.0,3309.0,0.03020219]
[1732281827604,0.8089,3311.0,3309.9,0.3008]
[1732281827999,0.01,3310.6,3309.9,0.3008]
[1732281828213,0.040183,3310.6,3309.9,0.3008]
[1732281828370,0.01,3310.6,3309.9,0.3008]
[1732281828569,0.01,3310.6,3309.6,0.03020862]
[1732281828570,0.01,3310.6,3309.6,0.33100862]
[1732281829085,0.040183,3310.6,3309.6,0.33100862]
[1732281829418,0.01,3310.6,3309.6,0.33100862]
[1732281829705,0.01,3310.6,3309.7,0.3008]
[1732281829914,0.01,3310.6,3309.4,1.04199621]
[1732281829915,0.01,3310.3,3309.4,1.04199621]
[1732281830272,0.02,3310.3,3309.4,1.04199621]
[1732281830510,0.7511,3310.2,3309.4,0.3008]
[1732281830731,0.7511,3310.2,3309.5,0.3008]
[1732281831245,0.040183,3310.1,3309.5,0.3008]
[1732281831618,0.02,3310.1,3308.6,0.3008]
[1732281831818,0.01,3309.8,3309.6,0.3008]
[1732281832442,0.8259,3310.0,3309.6,0.3008]
[1732281832849,0.8259,3310.0,3308.5,0.79469557]
[1732281832850,0.8259,3310.0,3308.8,0.3008]
[1732281833022,0.8259,3310.0,3308.9,0.03021026]
[1732281833216,0.8259,3310.0,3309.5,0.3008]
[1732281833217,0.030183,3309.9,3309.5,0.3008]
[1732281833527,0.8259,3310.0,3309.5,0.3008]
[1732281834245,0.8259,3310.0,3308.8,0.33101032]
[1732281834618,0.8259,3310.0,3309.2,0.3008]
[1732281834822,0.8259,3310.0,3309.7,3.0]
[1732281835129,0.8259,3310.0,3309.8,0.3013]
[1732281835452,0.8259,3310.0,3307.7,3.4281045]
[1732281835453,0.811,3309.1,3308.0,0.01513361]
[1732281835750,0.811,3309.1,3307.4,0.01515728]
[1732281836318,0.821,3309.1,3307.4,0.01515728]
[1732281836510,0.821,3309.1,3307.5,0.01515943]
[1732281836852,0.811,3309.1,3307.5,0.01515943]
[1732281837618,0.811,3309.1,3307.7,0.3013]
[1732281837971,0.01,3309.5,3307.2,0.2603272]
[1732281837972,0.7641,3308.9,3307.9,0.3013]
[1732281838175,0.7641,3308.9,3308.0,0.01516502]
[1732281838534,0.7541,3308.9,3308.0,0.01516502]
[1732281838740,0.7541,3308.9,3308.0,0.31646502]
[1732281839864,0.7541,3308.9,3308.0,0.01516502]
[1732281840179,0.7541,3308.9,3307.9,0.3013]
[1732281840376,0.39790866,3310.2,3307.6,0.56515746]
[1732281840377,0.7587,3309.3,3308.8,0.3013]
[1732281840584,0.7587,3309.3,3308.2,0.3013]
[1732281840585,0.7587,3309.3,3309.0,0.3013]
[1732281841076,0.7587,3309.3,3308.3,0.01514575]
[1732281841077,0.7587,3309.3,3309.2,0.3013]
[1732281841653,0.01,3309.7,3309.2,0.3013]
[1732281841868,0.05777103,3309.7,3309.2,0.3013]
[1732281842072,0.05777106,3309.7,3308.4,0.31644788]
[1732281842251,0.05777106,3309.7,3309.2,0.3013]
[1732281842458,0.8268,3309.4,3309.2,0.3013]
[1732281842641,0.01,3309.5,3308.3,0.74885609]
[1732281842642,0.01,3308.6,3308.4,0.3013]
[1732281842841,0.8265,3308.5,3308.4,0.3013]
[1732281843274,0.8265,3308.5,3307.0,0.31647582]
[1732281843476,0.8265,3308.5,3307.4,0.3013]
[1732281843684,0.8265,3308.5,3307.5,0.01516392]
[1732281844452,0.8265,3308.5,3307.5,0.31646392]
[1732281844657,0.8265,3308.5,3307.7,0.3013]
[1732281844864,0.8265,3308.5,3308.1,0.3013]
[1732281845147,0.7856,3309.1,3308.5,0.3013]
[1732281845780,0.01,3309.0,3308.5,0.3013]
[1732281846323,0.01,3308.9,3308.6,0.3013]
[1732281846483,0.01,3308.9,3308.3,0.3013]
[1732281846683,0.7856,3308.7,3308.3,0.3013]
[1732281846879,0.01,3308.4,3308.3,0.3013]
[1732281847082,0.01,3308.4,3307.3,0.01516914]
[1732281847305,0.01,3308.0,3306.6,0.6026]
[1732281847614,0.01,3308.0,3306.0,0.875]
[1732281847615,0.7536,3307.8,3306.8,0.3013]
[1732281847911,0.7536,3307.3,3306.8,0.3013]
[1732281848067,0.03779667,3307.2,3306.8,0.3013]
[1732281848266,0.01,3307.2,3306.8,0.3013]
[1732281848499,0.01,3307.1,3306.0,0.875]
[1732281848726,0.01,3307.1,3306.4,0.3013]
[1732281848883,0.01,3307.4,3306.5,0.01520736]
[1732281849294,0.01,3307.5,3306.4,0.3013]
[1732281849483,0.01,3307.1,3306.5,0.01519463]
[1732281849686,0.01,3307.1,3306.5,0.0152008]
[1732281849882,0.01,3307.6,3306.5,0.0152008]
[1732281850117,0.01,3308.1,3306.5,0.0152008]
[1732281850408,3.50156086,3308.5,3307.2,0.3013]
[1732281850409,0.01,3308.3,3307.2,0.3013]
[1732281850618,0.01,3308.3,3307.4,0.3013]
[1732281850911,0.01,3308.1,3307.4,0.3013]
[1732281851080,0.01,3307.6,3306.4,0.31648129]
[1732281851285,0.01,3307.4,3306.4,0.3013]
[1732281851514,0.7915,3307.3,3306.4,0.3165069]
[1732281851827,0.7915,3307.3,3306.4,0.3013]
[1732281852120,0.01,3306.9,3306.4,0.3013]
[1732281852270,0.01,3307.1,3306.4,0.3013]
[1732281852468,0.8015,3307.3,3306.4,0.31650712]
[1732281852673,0.8122,3306.8,3306.4,0.3013]
[1732281853171,0.01,3306.7,3306.3,0.1473819]
[1732281853508,3.94086112,3307.4,3306.3,0.1473819]
[1732281853509,0.7792,3306.4,3306.3,0.1473819]
[1732281855542,0.7692,3306.4,3306.3,0.1473819]
[1732281855753,0.7792,3306.4,3306.3,0.1473819]
[1732281858211,4.72006112,3306.4,3306.3,0.1473819]
[1732281858432,5.19206723,3306.4,3306.3,0.1473819]
[1732281859218,5.19206723,3306.4,3303.4,0.7926]
[1732281859219,0.01,3304.7,3303.4,0.7926]
[1732281859847,0.01,3304.7,3303.4,1.54164954]
[1732281860005,0.01,3304.7,3303.4,0.7926]
[1732281860341,0.01,3303.3,3303.2,0.005]
[1732281860578,0.01,3303.4,3303.2,0.005]
[1732281860723,0.82734398,3303.8,3303.2,0.005]
[1732281860924,0.7895,3303.8,3303.2,0.005]
[1732281861167,0.01,3303.3,3301.8,0.005]
[1732281861467,3.94086112,3304.5,3301.8,0.005]
[1732281861468,0.7795,3302.9,3301.8,0.005]
[1732281861829,0.7913,3300.6,3300.0,2.001]
[1732281862052,0.7913,3300.6,3298.7,3.11613186]
[1732281862053,0.8013,3298.7,3297.5,17.11874396]
[1732281862268,0.8013,3298.7,3296.6,30.6725846]
[1732281862269,0.01,3296.0,3294.8,2.4036608]
[1732281862426,0.01,3296.0,3293.3,26.31]
[1732281862427,3.95086112,3296.0,3293.2,5.8807568]
[1732281862639,0.01,3296.3,3293.2,5.8807568]
[1732281862840,5.53e-06,3296.2,3294.7,0.75668801]
[1732281863041,5.53e-06,3296.2,3294.8,0.4255886]
[1732281863245,0.03792326,3297.6,3294.4,0.3013]
[1732281863443,3.94086112,3298.5,3293.9,1.5414734]
[1732281863444,0.15383709,3297.3,3295.4,0.3013]
[1732281863670,7.09e-06,3297.3,3295.6,1.83443169]
[1732281863973,0.01,3298.9,3296.2,0.3013]
[1732281864130,0.01,3300.4,3295.7,1.83048918]
[1732281864131,0.1538256,3299.8,3296.9,0.00999776]
[1732281864330,0.1538256,3299.8,3297.3,0.00999776]
[1732281864526,0.01,3299.5,3297.4,0.03030698]
[1732281864740,0.01,3299.1,3298.2,3.0]
[1732281864943,0.01,3298.6,3297.4,0.03030698]
[1732281865229,0.01,3299.0,3296.9,0.03032204]
[1732281866010,0.01,3299.4,3296.9,0.03032204]
[1732281866265,3.94086112,3299.6,3296.9,0.03032204]
[1732281866266,0.01,3299.2,3296.9,0.03032204]
[1732281866453,0.01,3299.2,3296.9,0.58032204]
[1732281866654,0.01,3299.2,3298.4,3.0]
[1732281866966,0.01,3299.0,3296.9,0.58032204]
[1732281867269,0.01,3298.9,3296.9,0.03032204]
[1732281867475,0.01,3299.4,3296.9,0.0403198]
[1732281867684,0.01,3299.2,3296.9,0.03032204]
[1732281868103,0.01,3299.4,3296.9,0.03032204]
[1732281868351,0.6859,3299.7,3297.4,0.00999776]
[1732281868742,0.01,3299.6,3297.1,0.00999776]
[1732281868940,0.01,3299.6,3297.2,0.58030878]
[1732281869375,0.01,3299.8,3297.3,0.55999776]
[1732281869592,0.01,3299.8,3297.4,0.58030581]
[1732281870158,0.01,3299.6,3299.0,3.0]
[1732281870367,0.01,3299.2,3297.4,0.03030581]
[1732281870582,0.01,3299.2,3297.0,0.1616522]
[1732281870583,0.01,3299.2,3298.5,3.0]
[1732281870869,0.01,3299.4,3298.5,3.0]
[1732281871057,0.01,3299.6,3298.6,0.03031448]
[1732281871378,0.01,3299.2,3297.1,0.0303092]
[1732281871888,0.01,3299.2,3298.5,3.0]
[1732281872071,0.01,3299.7,3298.5,3.0]
[1732281872247,0.01,3299.2,3298.5,3.0]
[1732281872448,0.03010899,3300.3,3297.1,0.5803092]
[1732281872449,0.01,3299.5,3297.1,0.5803092]
[1732281872648,0.03010899,3300.3,3297.1,0.5803092]
[1732281872649,0.01,3299.2,3298.5,3.0]
[1732281872851,0.01,3299.2,3297.1,0.5803092]
[1732281872852,0.01,3299.4,3297.1,0.5803092]
[1732281873102,0.01,3299.2,3297.1,0.0303092]
[1732281873393,0.03010899,3300.3,3297.1,0.0303092]
[1732281873394,0.01,3298.9,3297.1,0.0303092]
[1732281874319,0.01,3298.5,3296.8,0.8216]
[1732281874515,0.01,3298.3,3296.8,0.7125614]
[1732281874796,0.01,3298.3,3296.9,0.01538593]
[1732281874999,0.7923,3298.2,3296.9,0.01538593]
[1732281875153,0.7923,3298.2,3295.9,0.01539125]
[1732281875589,0.03790472,3299.5,3295.9,0.01539125]
[1732281875590,0.01,3298.8,3296.3,0.3013]
[1732281875819,0.756,3298.9,3296.7,0.00999776]
[1732281875961,0.756,3299.6,3296.8,0.31665955]
[1732281876163,0.756,3299.6,3297.1,0.31129776]
[1732281876466,0.756,3299.6,3297.5,0.3013]
[1732281876766,0.756,3299.6,3298.8,3.0]
[1732281876994,0.756,3299.6,3297.2,0.55]
[1732281876995,0.756,3299.6,3298.1,0.3013]
[1732281877196,0.01,3299.3,3298.2,3.0153509]
[1732281877558,0.01,3299.2,3298.2,3.0153509]
[1732281877896,0.01,3299.2,3298.2,0.0153509]
[1732281878302,0.756,3299.6,3298.3,0.30153509]
[1732281878472,0.756,3299.6,3298.5,0.3013]
[1732281878665,0.756,3299.6,3298.6,0.56534695]
[1732281878867,0.766,3299.6,3297.3,0.31664669]
[1732281879065,0.01,3299.0,3297.5,0.3013]
[1732281879263,0.01,3299.0,3298.0,3.0]
[1732281879483,0.01,3299.5,3298.1,0.01536546]
[1732281879680,0.766,3299.6,3298.1,0.01536546]
[1732281879889,0.01,3299.4,3298.0,3.0]
[1732281880141,0.766,3299.6,3298.2,0.3013]
[1732281880294,0.766,3299.6,3298.1,3.01536141]
[1732281880295,0.766,3299.6,3298.4,0.3013]
[1732281880496,0.756,3299.6,3298.5,0.0153536]
[1732281880722,0.01,3300.0,3298.5,0.5653536]
[1732281880920,1.0962,3300.3,3298.9,0.55]
[1732281881086,0.7949,3300.3,3299.1,0.8513]
[1732281881288,0.7949,3300.3,3299.5,3.0]
[1732281881491,0.7949,3300.3,3299.1,0.8513]
[1732281881492,0.01,3300.8,3299.6,0.31533058]
[1732281881784,0.7949,3300.9,3299.6,0.31533058]
[1732281881785,0.7949,3300.9,3300.2,3.0]
[1732281881986,0.01,3301.4,3300.3,0.0153155]
[1732281882217,0.7949,3301.5,3300.3,3.0153155]
[1732281882412,0.7949,3301.5,3300.4,3.0]
[1732281882586,0.01,3301.4,3300.5,0.01530466]
[1732281883236,0.01,3301.4,3300.4,3.0]
[1732281883533,0.01,3301.4,3300.2,3.0]
[1732281883697,0.01,3301.4,3300.3,0.0153143]
[1732281884321,0.01,3301.7,3300.4,0.01531862]
[1732281884707,0.01,3301.7,3300.5,0.30153186]
[1732281884915,0.01,3301.7,3300.6,0.01530269]
[1732281885122,0.01,3301.4,3300.6,0.01530269]
[1732281885436,0.01,3301.6,3299.9,0.56531437]
[1732281885589,0.01,3301.4,3299.9,0.56531437]
[1732281885790,0.01,3301.4,3300.1,3.0]
[1732281885990,0.01,3301.4,3300.2,0.31531278]
[1732281886596,0.01,3301.7,3300.2,0.01531278]
[1732281887007,0.01,3301.7,3300.2,3.0]
[1732281887205,0.01,3301.7,3300.3,0.01531283]
[1732281887395,0.01,3301.7,3300.4,0.30153128]
[1732281887621,0.01,3301.7,3300.5,0.01531008]
[1732281887794,0.7506,3302.1,3300.5,0.01531008]
[1732281887795,0.01,3301.4,3300.5,0.01531008]
[1732281888130,0.01,3301.4,3300.3,0.01531172]
[1732281888289,0.01,3301.4,3300.3,0.31684289]
[1732281888493,0.01,3301.4,3300.3,0.01531172]
[1732281888929,0.01,3301.4,3300.4,0.01531338]
[1732281889243,0.005,3301.7,3300.4,0.01531338]
[1732281889527,0.78846277,3302.1,3298.9,0.76881777]
[1732281889528,0.005,3301.3,3299.9,0.56530746]
[1732281890029,0.005,3301.8,3299.9,0.56530746]
[1732281890239,0.7506,3302.1,3299.9,0.56530746]
[1732281890240,0.005,3301.6,3300.0,3.0]
[1732281890392,0.005,3301.6,3300.1,0.0153083]
[1732281890827,0.005,3301.3,3300.1,0.0153083]
[1732281891035,0.005,3301.3,3299.7,0.55]
[1732281891190,0.005,3301.3,3299.8,0.01531468]
[1732281891396,0.7651,3301.5,3299.8,0.01531468]
[1732281891736,0.7651,3301.5,3300.2,0.55]
[1732281891947,0.7651,3301.5,3300.3,0.01530059]
[1732281892991,0.7651,3301.5,3300.3,0.37183065]
[1732281893196,0.005,3301.2,3300.3,0.01530059]
[1732281893504,0.005,3301.2,3299.5,0.0153149]
[1732281894466,0.005,3301.2,3299.7,0.55]
[1732281894605,0.005,3301.2,3299.8,0.37031478]
[1732281895009,0.7651,3301.5,3299.8,0.01531478]
[1732281895303,0.7651,3301.5,3300.5,0.3013]
[1732281895508,0.7651,3301.5,3300.7,0.3013]
[1732281895709,0.7696,3302.0,3300.9,0.3013]
[1732281895929,0.7696,3302.0,3301.1,0.3013]
[1732281896131,0.7696,3302.0,3301.3,0.3013]
[1732281896412,0.7696,3302.5,3301.7,0.3013]
[1732281896625,0.7696,3302.5,3301.7,0.31657175]
[1732281896959,0.7696,3302.5,3301.7,0.3013]
[1732281897262,0.005,3302.2,3301.7,0.3013]
[1732281897551,0.005,3302.2,3300.7,0.31658523]
[1732281897766,0.763,3301.8,3300.8,0.01529313]
[1732281898048,0.005,3301.4,3300.7,0.3013]
[1732281899260,0.005,3301.4,3300.8,0.01531291]
[1732281899461,0.005,3301.2,3300.8,0.3013]
[1732281899821,0.005,3300.7,3299.6,0.31661117]
[1732281900022,0.005,3299.8,3298.3,0.01532636]
[1732281900390,0.80537228,3300.6,3298.3,0.01532636]
[1732281900391,0.005,3300.3,3298.3,0.01532636]
[1732281900824,0.005,3300.1,3298.3,0.01532636]
[1732281901945,0.7949,3299.3,3297.7,0.15570316]
[1732281902265,0.7949,3299.3,3297.8,0.0153618]
[1732281903028,0.7599,3299.8,3297.8,0.0153618]
[1732281903473,0.005,3300.2,3297.9,0.7906]
[1732281903769,0.7599,3300.3,3298.0,0.01533909]
[1732281903969,0.7599,3300.3,3298.0,0.56533909]
[1732281904324,0.7599,3300.3,3298.4,0.55]
[1732281904531,0.7599,3300.8,3298.5,0.0153292]
[1732281905554,0.7599,3300.8,3298.7,0.55]
[1732281905804,0.7599,3300.8,3298.9,0.55]
[1732281906011,0.7599,3300.8,3299.0,0.01532039]
[1732281906175,0.005,3300.7,3299.0,0.01532039]
[1732281906375,0.7555,3300.1,3298.6,0.01533811]
[1732281906605,0.7555,3300.1,3298.1,0.77394559]
[1732281906877,0.7555,3299.8,3298.2,0.0153408]
[1732281907306,0.7555,3299.8,3296.8,0.01535491]
[1732281907521,0.7555,3299.8,3296.9,1.0828]
[1732281907676,0.7555,3299.8,3297.0,0.01535491]
[1732281908021,3.0,3300.7,3297.0,0.01535491]
[1732281908022,0.7933,3299.4,3297.0,0.01535491]
[1732281908313,0.005,3299.1,3297.0,0.01535491]
[1732281908709,0.005,3298.7,3297.0,0.01535491]
[1732281909098,0.7698,3298.6,3297.0,0.01535491]
[1732281909285,0.7698,3298.1,3296.6,0.01538049]
[1732281909489,0.005,3297.7,3295.5,0.75633186]
[1732281909822,0.005,3297.7,3295.1,0.7963]
[1732281909823,0.005,3297.4,3295.1,0.76169698]
[1732281910023,0.005,3297.4,3295.2,0.06936496]
[1732281910196,0.005,3297.4,3295.2,0.37066496]
[1732281910406,0.005,3297.4,3295.2,0.06936496]
[1732281910585,0.7632,3297.6,3295.3,0.15817997]
[1732281911114,0.03790183,3299.0,3295.9,0.8084]
[1732281911322,0.005,3299.1,3295.9,0.8084]
[1732281911487,0.005,3299.1,3296.0,0.55]
[1732281911688,0.005,3299.4,3296.3,0.8084]
[1732281911910,0.005,3299.9,3296.7,0.55]
[1732281912131,0.005,3299.9,3297.1,0.8084]
[1732281912332,0.005,3299.9,3297.3,0.8084]
[1732281912592,1.20187818,3301.2,3297.1,3.0]
[1732281912593,0.005,3300.7,3297.6,0.555]
[1732281912832,0.005,3300.9,3298.0,0.55]
[1732281913122,0.005,3300.9,3298.4,0.55]
[1732281913305,0.005,3300.7,3298.4,0.55]
[1732281913512,0.03786842,3301.7,3298.4,0.55]
[1732281913513,0.005,3300.8,3298.4,0.55]
[1732281913798,0.005,3300.3,3298.4,0.55]
[1732281914030,0.03786842,3301.7,3298.4,0.55]
[1732281914031,0.1163,3300.8,3298.4,0.55]
[1732281914201,0.005,3300.7,3298.4,0.55]
[1732281914846,0.1163,3300.8,3298.5,0.7973]
[1732281915060,0.1163,3300.8,3298.8,0.55]
[1732281916035,0.11417977,3300.8,3298.8,0.55]
[1732281916756,0.11417977,3300.8,3298.8,1.3105857]
[1732281917240,0.11417977,3300.8,3298.8,0.55]
[1732281917806,0.11417977,3300.8,3298.7,1.55768098]
[1732281917807,0.11417977,3300.8,3299.0,0.55]
[1732281918028,0.005,3300.7,3299.0,0.55]
[1732281918249,1.20187818,3301.8,3298.9,0.2107681]
[1732281918250,0.005,3300.3,3298.9,0.2107681]
[1732281918404,0.005,3300.3,3298.2,0.821]
[1732281918405,0.005,3300.3,3298.2,1.58274123]
[1732281918622,0.005,3299.9,3298.2,0.821]
[1732281919049,0.005,3299.7,3297.3,1.56452896]
[1732281919256,0.005,3299.7,3297.3,0.821]
[1732281919457,0.1142,3299.8,3297.3,0.821]
[1732281919815,0.1142,3299.8,3297.4,0.005]
[1732281920012,0.1142,3299.8,3297.5,0.7997]
[1732281920256,0.1142,3299.8,3297.6,0.01499776]
[1732281920413,0.1142,3299.8,3297.8,0.55]
[1732281920616,0.1142,3299.8,3297.9,0.005]
[1732281921120,0.1142,3299.8,3297.8,0.55]
[1732281921314,0.1142,3299.8,3297.7,0.782]
[1732281921315,0.1192,3299.8,3297.7,0.782]
[1732281921567,0.1192,3299.8,3297.7,1.52462213]
[1732281921748,0.005,3299.1,3297.8,0.15246221]
[1732281921919,0.1142,3299.0,3297.2,1.59341224]
[1732281922116,0.1142,3299.0,3297.3,0.15934122]
[1732281922750,0.005,3298.7,3297.3,0.15934122]
[1732281922920,0.005,3298.7,3297.0,2.8809]
[1732281923115,0.1142,3299.0,3297.0,2.8809]
[1732281923358,0.005,3298.7,3297.0,2.8809]
[1732281923919,0.1142,3298.6,3297.0,2.8809]
[1732281924133,0.1142,3298.6,3297.1,0.28809]
[1732281925147,0.00468874,3297.7,3297.1,0.28809]
[1732281925623,0.1142,3297.6,3297.1,0.28809]
[1732281925829,0.1142,3297.6,3295.6,0.8027]
[1732281926368,0.1142,3297.6,3295.6,1.104]
[1732281926538,0.1142,3297.6,3295.7,1.05263121]
[1732281928404,0.005,3297.3,3295.3,0.3013]
[1732281928584,0.00468874,3297.7,3295.3,0.3013]
[1732281928585,0.1142,3297.2,3295.4,0.77174165]
[1732281928786,0.1142,3297.2,3295.5,0.3013]
[1732281928988,0.00468874,3297.7,3296.1,1.0878]
[1732281929171,0.00468874,3297.7,3296.1,0.3013]
[1732281929573,0.005,3297.6,3296.1,0.3013]
[1732281929889,0.00468874,3297.7,3296.2,0.55]
[1732281930119,0.005,3297.5,3295.8,0.74498129]
[1732281930412,0.005,3297.3,3295.0,0.7844]
[1732281930861,0.005,3297.4,3295.0,0.7844]
[1732281931207,0.005,3297.6,3295.3,0.75073598]
[1732281931759,0.005,3297.3,3295.3,0.75073598]
[1732281931973,0.0315,3297.2,3295.3,0.75073598]
[1732281932173,0.0315,3297.2,3295.0,0.7844]
[1732281932174,0.005,3297.1,3295.0,0.7844]
[1732281932378,0.0315,3297.0,3295.1,0.76601544]
[1732281932629,0.07418096,3297.0,3295.1,0.76601544]
[1732281933908,0.005,3296.8,3295.1,0.76601544]
[1732281934200,0.00468874,3297.7,3295.1,0.76601544]
[1732281934201,0.005,3296.6,3295.1,0.76601544]
[1732281934404,0.005,3296.1,3294.5,0.74347445]
[1732281934603,0.005,3296.1,3294.3,0.0920428]
[1732281934604,0.0365,3296.1,3294.3,0.0920428]
[1732281934906,0.005,3296.3,3294.3,0.0920428]
[1732281935074,4.21631771,3297.4,3294.3,0.0920428]
[1732281935075,0.03792139,3297.4,3294.3,0.0920428]